{"text_format":"1","workbook":"xlsx","n_sheets":6,"sheets":["informace","návod","lineární","lineární s abs. h.","kvadratická","lin. lomená"],"not_rendered":{"charts":13,"images":1,"macros":1,"external_links":0,"defined_names":0,"comments":0,"pivot_tables":0},"unopened":[],"bounds":{"document_bytes":16777216,"sheet_cells":100000,"rows_first":2000,"rows_last":500,"rows_between":2000,"halvings":0,"cell_chars":16384,"cell_head_chars":4096},"cells_cut":0,"cells_raw":0,"read":"whole","date_system":"1900"}

{"sheet":"informace","index":0,"n_rows":34,"n_cols":2,"rows_kept":34,"cut":false,"hidden":false,"merged":[[4,0,9,0],[10,0,14,0],[15,0,28,0],[30,0,33,0]]}
["Název:","Modelování funkcí v programu MS Excel"]
["Potřeby:","Počítačová učebna, program MS Excel"]
["Počet žáků ve skupině:","1 (individuální práce)"]
["Časová náročnost:","1 vyučovací hodina (matematika, informatika)"]
["Cíle:","Upevnit používání vzorců a podmínek „KDYŽ“ v programu MS Excel"]
[null,"Představit praktické využití tohoto programu"]
[null,"Vytvořit aplikaci pro vykreslování základních funkcí a jejich posunů (pomocí parametrů)"]
[null,"Procvičit základní funkce a jejich posuny"]
[null,"Uvědomit si význam jednotlivých parametrů u různých typů funkcí (společné znaky)"]
[null,"Upravit rozhraní programu do určité estetické podoby"]
["Potřebné znalosti:","·         Vkládání vzorců do buněk"]
[null,"·         Absolutní a relativní odkazy na buňky souboru"]
[null,"·         Ovládání podmínky „KDYŽ“"]
[null,"·         Vkládání grafů a jejich nastavení"]
[null,"·         Používání číselníku (není nutné, stačí hodnotu parametru doplňovat ručně)"]
["Zadání úkolu:","V programu MS Excel vypracujte aplikaci, která bude zobrazovat grafy funkcí. Na výběr jsou tyto typy funkcí:"]
[null,"-          lineární funkce"]
[null,"-          lineární funkce s absolutní hodnotou"]
[null,"-          kvadratická funkce"]
[null,"-          lineární lomená funkce"]
[null,"Každá aplikace bude mít tyto části:"]
[null,"1.      Nadpis, jméno žáka, předpis základní funkce (bez posunů)"]
[null,"2.      Vypracované grafy pro jednotlivé parametry, kde graf reaguje na změnu parametrů"]
[null,"(tj. zvlášť grafy pro tyto funkce – příklad na kvadratické:"]
[]
[null,"                                                                                                                                )"]
[null,"3.      Předpis funkce se zvolenými parametry "]
[null,"4.      Tabulka hodnot x a f(x), ze které jsou data pro graf (tedy hodnoty se také mění se změnou parametrů)"]
[null,"Upravte vzhled aplikace tak, aby vše bylo přehledné a estetické."]
["Hodnocení:","Žáci prezentují své aplikace a zároveň diskutují o významu parametrů (co přesně v grafu mění, zda tento princip funguje u všech typů grafů). Společně diskutují i o grafické stránce aplikace."]
["Poznámky:","Vypracované příklady jsou v přiloženém souboru Funkce.exe.  Lineární lomenou funkci doporučuji přiřadit šikovnějším žákům. Zde je třeba ji rozdělit na dvě funkce (každá větev hyperboly má svoji), protože graf je vykreslován z tabulky a proto MS Excel nerozpozná, že definičním oborem funkce nejsou všechna reálná čísla (tedy graf prochází i bodem [0;0])."]
[null,"Podrobnější návod na tvorbu aplikace je na další záložce. "]
[null,"Tímto způsobem vzniká aplikace, kterou je možné využít při výuce (pouze jako příklad). Slouží pro názorný výklad změn grafů s určitým parametrem (koeficientem)."]
[null,"Aplikaci je možné použít i jako kontrolu pro žáka, zda příklad vypracoval správně (při samostudiu)."]

{"sheet":"návod","index":1,"n_rows":50,"n_cols":16,"rows_kept":50,"cut":false,"hidden":false,"merged":[[4,1,19,1],[4,11,7,11],[3,2,3,5],[1,6,1,9],[1,14,1,16]]}
[]
[null,"Kvadratická funkce",null,null,null,null,"Aby a mohlo být menší jak nula, zadáme do buňky odkaz na skrytou buňku J3 (J5) a od ní odečteme nějakou konstantu.",null,null,null,null,"Skrytá buňka pro hodnotu z číselníku, ta může být pouze kladná. Odkaz z číselníku tedy směřuje na tuto buňku.",null,null,"Hodnoty v tabulce jsou ve sloupci y zadané pomocí vzorců s odkazy na parametry a hodnotu ve sloupci x (absolutní nebo relativní odkazy pro kopírování vzorce: pomocí F4)."]
[null,null,"Funkce:",null,null,null,null,"Zadání parametru:",null,null,null,"Hodnoty v tabulce:"]
[null,null,"y = (x + b)2 + c",null,null,null,null,"c=",{"$f":"K4-3","v":-2},null,1,null,null,null,"x","y"]
[null,"Znaménko do předpisu funkce vložíme pomocí podmínky KDYŽ, která se bude vztahovat na kladnost, či záporonost parametru. Hodnotu parametru potom do předpisu funkce musíme vkládat v absolutní hodnotě. Tedy předpis pro buňku E9: =KDYŽ(I6<0; \"-\"; \"+\").",null,null,null,null,null,null,null,null,null,"Číselník vkládáme pomocí záložky \"Vývojář\" - \"Vložit\" - čtvrtá ikona v \"Ovládací prvky formuláře\"",null,null,-4,{"$f":"(O5+$I$6)^2+$I$4","v":7}]
[null,null,null,null,null,null,null,"b=",{"$f":"K6-3","v":1},null,4,null,null,null,-3.5,{"$f":"(O6+$I$6)^2+$I$4","v":4.25}]
[null,null,null,null,null,null,null,null,null,null,null,null,null,null,-3,2]
[null,null,"Graf funkce:",null,null,"y=",null,null,null,null,null,null,null,null,-2.5,0.25]
[null,null,"f: y=","(x",{"$f":"IF(I6<0, \"-\", \"+\")","v":"+"},null,{"$f":"ABS(I6)&\")^2\"","v":"1)^2"},{"$f":"IF(I4<0, \"-\", \"+\")","v":"-"},{"$f":"ABS(I4)","v":2},null,null,null,null,null,-2,-1]
[null,null,null,null,null,null,null,null,null,null,null,null,null,null,-1.5,-1.75]
[null,null,null,null,null,null,null,null,null,null,null,null,null,null,-1,-2]
[null,null,null,null,null,null,null,null,null,null,null,null,null,null,-0.5,-1.75]
[null,null,null,null,null,null,null,null,null,null,null,null,null,null,0,-1]
[null,null,null,null,null,null,null,null,null,null,null,null,null,null,0.5,0.25]
[null,null,null,null,null,null,null,null,null,null,null,null,null,null,1,2]
[null,null,null,null,null,null,null,null,null,null,null,null,null,null,1.5,4.25]
[null,null,null,null,null,null,null,null,null,null,null,null,null,null,2,7]
[null,null,null,null,null,null,null,null,null,null,null,null,null,null,2.5,10.25]
[null,null,null,null,null,null,null,null,null,null,null,null,null,null,3,14]
[null,null,null,null,null,null,null,null,null,null,null,null,null,null,3.5,18.25]
[null,null,null,null,null,null,null,null,null,null,null,null,null,null,4,23]
[]
[]
[]
[]
[]
[]
[]
[]
[]
[]
[]
[]
[]
[]
[]
[]
[]
[]
[]
[]
[]
[]
[]
[]
[]
[]
[null,null,null,null,null,null,null,null,null,null,0]
[]
[null,null,null,null,null,null,null,null,null,null,0]

{"sheet":"lineární","index":2,"n_rows":33,"n_cols":19,"rows_kept":33,"cut":false,"hidden":false,"merged":[[0,0,0,18],[3,0,3,3]]}
["LINEÁRNÍ FUNKCE"]
[]
["Funkce:",null,null,null,null,"Zadání konstanty:",null,null,null,"Hodnoty v tabulce:"]
["y = x + a",null,null,null,null,"a=",{"$f":"I4-3","v":2},null,5,"x",-4,-3,-2,-1,0,1,2,3,4]
[null,null,null,null,null,null,null,null,null,"y",{"$f":"K4+$G$4","v":-2},{"$f":"L4+$G$4","v":-1},0,1,2,3,4,5,6]
[]
["Graf funkce:",null,null,null,"y=","x",{"$f":"IF(G4<0, \"-\", \"+\")","v":"+"},{"$f":"ABS(G4)","v":2}]
[]
[]
[]
[]
[]
[]
[]
[]
[]
[]
[]
[]
[]
[]
[]
[]
[]
[]
[]
[]
[]
["Funkce:",null,null,null,null,"Zadání konstanty:",null,null,null,"Hodnoty v tabulce:"]
["y=","b","*","x",null,"b=",{"$f":"I30/2-2","v":-1.5},null,1,"x",-4,-3,-2,-1,0,1,2,3,4]
[null,null,null,null,null,null,null,null,null,"y",{"$f":"K30*$G$30","v":6},{"$f":"L30*$G$30","v":4.5},3,1.5,0,-1.5,-3,-4.5,-6]
[]
["Graf funkce:",null,null,null,"y=",{"$f":"G30","v":-1.5},"*","x"]

{"sheet":"lineární s abs. h.","index":3,"n_rows":52,"n_cols":19,"rows_kept":52,"cut":false,"hidden":false,"merged":[[25,0,25,3],[3,0,3,3],[47,0,47,3],[0,0,0,18]]}
["LINEÁRNÍ FUNKCE S ABSOLUTNÍ HODNOTOU"]
[]
["Funkce:",null,null,null,null,"Zadání parametru:",null,null,null,"Hodnoty v tabulce:"]
["y = |x| + a",null,null,null,null,"a=",{"$f":"I4-3","v":-3},null,0,"x",-4,-3,-2,-1,0,1,2,3,4]
[null,null,null,null,null,null,null,null,null,"y",{"$f":"ABS(K4)+$G$4","v":1},{"$f":"ABS(L4)+$G$4","v":0},-1,-2,-3,-2,-1,0,1]
[]
["Graf funkce:",null,null,null,"y=","|x|",{"$f":"IF(G4<0, \"-\", \"+\")","v":"-"},{"$f":"ABS(G4)","v":3}]
[]
[]
[]
[]
[]
[]
[]
[]
[]
[]
[]
[]
[]
[]
[]
[]
[]
["Funkce:",null,null,null,null,"Zadání parametru:",null,null,null,"Hodnoty v tabulce:"]
["y = |x + b|",null,null,null,null,"b=",{"$f":"I26-3","v":-2},null,1,"x",-4,-3,-2,-1,0,1,2,3,4]
[null,null,null,null,null,null,null,null,null,"y",{"$f":"ABS(K26+$G$26)","v":6},{"$f":"ABS(L26+$G$26)","v":5},4,3,2,1,0,1,2]
[]
["Graf funkce:",null,null,null,"y=","|x",{"$f":"IF(G26<0, \"-\", \"+\")","v":"-"},{"$f":"ABS(G26)&\"|\"","v":"2|"}]
[]
[]
[]
[]
[]
[]
[]
[]
[]
[]
[]
[]
[]
[]
[]
[]
[]
["Funkce:",null,null,null,null,"Zadání parametru:",null,null,null,"Hodnoty v tabulce:"]
["y = |x + b| + a",null,null,null,null,"a=",{"$f":"I48-3","v":1},null,4,"x",-4,-3,-2,-1,0,1,2,3,4]
[null,null,null,null,null,null,null,null,null,"y",{"$f":"ABS(K48+$G$50)+$G$48","v":2},{"$f":"ABS(L48+$G$50)+$G$48","v":1},2,3,4,5,6,7,8]
[null,null,null,null,null,"b=",{"$f":"I50-3","v":3},null,6]
[]
["Graf funkce:",null,null,null,"y=","|x",{"$f":"IF(G50<0, \"-\", \"+\")","v":"+"},{"$f":"ABS(G50)&\"|\"","v":"3|"},null,{"$f":"IF(G48<0, \"-\", \"+\")","v":"+"},{"$f":"ABS(G48)","v":1}]

{"sheet":"kvadratická","index":4,"n_rows":88,"n_cols":16,"rows_kept":88,"cut":false,"hidden":false,"merged":[[3,0,3,3],[25,0,25,3],[47,0,47,3],[70,0,70,3],[0,0,0,13]]}
["KVADRATICKÁ FUNKCE"]
[null,null,null,null,null,null,null,null,null,null,null,null,null,null,null,"volit bodový graf s vyhlazenými spojnicemi"]
["Funkce:",null,null,null,null,"Zadání parametru:",null,null,null,"Hodnoty v tabulce:"]
["y = x2 + a",null,null,null,null,"a=",{"$f":"I4-3","v":-2},null,1,null,null,null,"x","y"]
[null,null,null,null,null,null,null,null,null,null,null,null,-4,{"$f":"(M5)^2+$G$4","v":14}]
[null,null,null,null,null,null,null,null,null,null,null,null,-3.5,{"$f":"(M6)^2+$G$4","v":10.25}]
["Graf funkce:",null,null,null,"y=","x2",{"$f":"IF(G4<0, \"-\", \"+\")","v":"-"},{"$f":"ABS(G4)","v":2},null,null,null,null,-3,7]
[null,null,null,null,null,null,null,null,null,null,null,null,-2.5,4.25]
[null,null,null,null,null,null,null,null,null,null,null,null,-2,2]
[null,null,null,null,null,null,null,null,null,null,null,null,-1.5,0.25]
[null,null,null,null,null,null,null,null,null,null,null,null,-1,-1]
[null,null,null,null,null,null,null,null,null,null,null,null,-0.5,-1.75]
[null,null,null,null,null,null,null,null,null,null,null,null,0,-2]
[null,null,null,null,null,null,null,null,null,null,null,null,0.5,-1.75]
[null,null,null,null,null,null,null,null,null,null,null,null,1,-1]
[null,null,null,null,null,null,null,null,null,null,null,null,1.5,0.25]
[null,null,null,null,null,null,null,null,null,null,null,null,2,2]
[null,null,null,null,null,null,null,null,null,null,null,null,2.5,4.25]
[null,null,null,null,null,null,null,null,null,null,null,null,3,7]
[null,null,null,null,null,null,null,null,null,null,null,null,3.5,10.25]
[null,null,null,null,null,null,null,null,null,null,null,null,4,14]
[]
[]
[]
["Funkce:",null,null,null,null,"Zadání parametru:",null,null,null,"Hodnoty v tabulce:"]
["y = (x + b)2",null,null,null,null,"a=",{"$f":"I26-3","v":1},null,4,null,null,null,"x","y"]
[null,null,null,null,null,null,null,null,null,null,null,null,-4,{"$f":"(M27+$G$26)^2","v":9}]
[null,null,null,null,null,null,null,null,null,null,null,null,-3.5,{"$f":"(M28+$G$26)^2","v":6.25}]
["Graf funkce:",null,null,"y=","(x",{"$f":"IF(G26<0, \"-\", \"+\")","v":"+"},{"$f":"ABS(G26)&\")^2\"","v":"1)^2"},null,null,null,null,null,-3,4]
[null,null,null,null,null,null,null,null,null,null,null,null,-2.5,2.25]
[null,null,null,null,null,null,null,null,null,null,null,null,-2,1]
[null,null,null,null,null,null,null,null,null,null,null,null,-1.5,0.25]
[null,null,null,null,null,null,null,null,null,null,null,null,-1,0]
[null,null,null,null,null,null,null,null,null,null,null,null,-0.5,0.25]
[null,null,null,null,null,null,null,null,null,null,null,null,0,1]
[null,null,null,null,null,null,null,null,null,null,null,null,0.5,2.25]
[null,null,null,null,null,null,null,null,null,null,null,null,1,4]
[null,null,null,null,null,null,null,null,null,null,null,null,1.5,6.25]
[null,null,null,null,null,null,null,null,null,null,null,null,2,9]
[null,null,null,null,null,null,null,null,null,null,null,null,2.5,12.25]
[null,null,null,null,null,null,null,null,null,null,null,null,3,16]
[null,null,null,null,null,null,null,null,null,null,null,null,3.5,20.25]
[null,null,null,null,null,null,null,null,null,null,null,null,4,25]
[]
[]
[]
["Funkce:",null,null,null,null,"Zadání parametru:",null,null,null,"Hodnoty v tabulce:"]
["y = (x + b)2 + a",null,null,null,null,"a=",{"$f":"I48-3","v":-1},null,2,null,null,null,"x","y"]
[null,null,null,null,null,null,null,null,null,null,null,null,-4,{"$f":"(M49+$G$50)^2+$G$48","v":24}]
[null,null,null,null,null,"b=",{"$f":"I50-3","v":-1},null,2,null,null,null,-3.5,{"$f":"(M50+$G$50)^2+$G$48","v":19.25}]
[null,null,null,null,null,null,null,null,null,null,null,null,-3,15]
["Graf funkce:",null,null,"y=","(x",{"$f":"IF(G50<0, \"-\", \"+\")","v":"-"},{"$f":"ABS(G50)&\")^2\"","v":"1)^2"},{"$f":"IF(G48<0, \"-\", \"+\")","v":"-"},null,{"$f":"ABS(G48)","v":1},null,null,-2.5,11.25]
[null,null,null,null,null,null,null,null,null,null,null,null,-2,8]
[null,null,null,null,null,null,null,null,null,null,null,null,-1.5,5.25]
[null,null,null,null,null,null,null,null,null,null,null,null,-1,3]
[null,null,null,null,null,null,null,null,null,null,null,null,-0.5,1.25]
[null,null,null,null,null,null,null,null,null,null,null,null,0,0]
[null,null,null,null,null,null,null,null,null,null,null,null,0.5,-0.75]
[null,null,null,null,null,null,null,null,null,null,null,null,1,-1]
[null,null,null,null,null,null,null,null,null,null,null,null,1.5,-0.75]
[null,null,null,null,null,null,null,null,null,null,null,null,2,0]
[null,null,null,null,null,null,null,null,null,null,null,null,2.5,1.25]
[null,null,null,null,null,null,null,null,null,null,null,null,3,3]
[null,null,null,null,null,null,null,null,null,null,null,null,3.5,5.25]
[null,null,null,null,null,null,null,null,null,null,null,null,4,8]
[]
[]
[]
[]
["Funkce:",null,null,null,null,"Zadání parametru:",null,null,null,"Hodnoty v tabulce:"]
["y = c*x 2",null,null,null,null,"c=",{"$f":"I71-3","v":1},null,4,null,null,null,"x","y"]
[null,null,null,null,null,null,null,null,null,null,null,null,-4,{"$f":"(M72)^2*$G$71","v":16}]
[null,null,null,null,null,null,null,null,null,null,null,null,-3.5,{"$f":"(M73)^2*$G$71","v":12.25}]
["Graf funkce:",null,null,"y=","x^2","*",{"$f":"G71","v":1},null,null,null,null,null,-3,9]
[null,null,null,null,null,null,null,null,null,null,null,null,-2.5,6.25]
[null,null,null,null,null,null,null,null,null,null,null,null,-2,4]
[null,null,null,null,null,null,null,null,null,null,null,null,-1.5,2.25]
[null,null,null,null,null,null,null,null,null,null,null,null,-1,1]
[null,null,null,null,null,null,null,null,null,null,null,null,-0.5,0.25]
[null,null,null,null,null,null,null,null,null,null,null,null,0,0]
[null,null,null,null,null,null,null,null,null,null,null,null,0.5,0.25]
[null,null,null,null,null,null,null,null,null,null,null,null,1,1]
[null,null,null,null,null,null,null,null,null,null,null,null,1.5,2.25]
[null,null,null,null,null,null,null,null,null,null,null,null,2,4]
[null,null,null,null,null,null,null,null,null,null,null,null,2.5,6.25]
[null,null,null,null,null,null,null,null,null,null,null,null,3,9]
[null,null,null,null,null,null,null,null,null,null,null,null,3.5,12.25]
[null,null,null,null,null,null,null,null,null,null,null,null,4,16]

{"sheet":"lin. lomená","index":5,"n_rows":91,"n_cols":15,"rows_kept":91,"cut":false,"hidden":false,"merged":[[3,0,3,3],[0,0,0,14],[37,0,37,3],[71,0,71,3]]}
["LINEÁRNÍ LOMENÁ FUNKCE"]
[null,null,null,null,null,null,null,null,null,null,null,null,"volit bodový graf s vyhlazenými spojnicemi"]
["Funkce:",null,null,null,null,"Zadání konstanty:",null,null,null,"Hodnoty v tabulce:"]
["y = 1/x + a",null,null,null,null,"a=",{"$f":"I4-3","v":1},null,4,null,null,null,"x","y","y"]
[null,null,null,null,null,null,null,null,null,null,null,null,-4,{"$f":"1/M5+$G$4","v":0.75}]
[null,null,null,null,null,null,null,null,null,null,null,null,-3.5,{"$f":"1/M6+$G$4","v":0.7142857142857143}]
["Graf funkce:",null,null,null,"y=","1/x",{"$f":"IF(G4<0, \"-\", \"+\")","v":"+"},{"$f":"ABS(G4)","v":1},null,null,null,null,-3,0.66666666666666674]
[null,null,null,null,null,null,null,null,null,null,null,null,-2.5,0.6]
[null,null,null,null,null,null,null,null,null,null,null,null,-2,0.5]
[null,null,null,null,null,null,null,null,null,null,null,null,-1.5,0.33333333333333337]
[null,null,null,null,null,null,null,null,null,null,null,null,-1,0]
[null,null,null,null,null,null,null,null,null,null,null,null,-0.5,-1]
[null,null,null,null,null,null,null,null,null,null,null,null,-0.2,-4]
[null,null,null,null,null,null,null,null,null,null,null,null,0]
[null,null,null,null,null,null,null,null,null,null,null,null,0.2,null,{"$f":"1/M15+$G$4","v":6}]
[null,null,null,null,null,null,null,null,null,null,null,null,0.5,null,{"$f":"1/M16+$G$4","v":3}]
[null,null,null,null,null,null,null,null,null,null,null,null,1,null,2]
[null,null,null,null,null,null,null,null,null,null,null,null,1.5,null,1.6666666666666665]
[null,null,null,null,null,null,null,null,null,null,null,null,2,null,1.5]
[null,null,null,null,null,null,null,null,null,null,null,null,2.5,null,1.4]
[null,null,null,null,null,null,null,null,null,null,null,null,3,null,1.3333333333333333]
[null,null,null,null,null,null,null,null,null,null,null,null,3.5,null,1.2857142857142856]
[null,null,null,null,null,null,null,null,null,null,null,null,4,null,1.25]
[]
[]
[]
[]
[]
[]
[]
[]
[]
[]
[]
[]
[]
["Funkce:",null,null,null,null,"Zadání konstanty:",null,null,null,"Hodnoty v tabulce:"]
["y = 1/(x + b)",null,null,null,null,"b=",{"$f":"I38-3","v":0},null,3,null,null,null,"x","y","y"]
[null,null,null,null,null,null,null,null,null,null,null,null,{"$f":"-(G38)-4","v":-4},{"$f":"1/(M39+$G$38)","v":-0.25}]
[null,null,null,null,null,null,null,null,null,null,null,null,{"$f":"-(G38)-3.5","v":-3.5},{"$f":"1/(M40+$G$38)","v":-0.2857142857142857}]
["Graf funkce:",null,null,null,"y=","1/(x",{"$f":"IF(G38<0, \"-\", \"+\")","v":"+"},{"$f":"ABS(G38)&\")\"","v":"0)"},null,null,null,null,{"$f":"-(G38)-3","v":-3},-0.33333333333333331]
[null,null,null,null,null,null,null,null,null,null,null,null,{"$f":"-(G38)-2.5","v":-2.5},-0.4]
[null,null,null,null,null,null,null,null,null,null,null,null,{"$f":"-(G38)-2","v":-2},-0.5]
[null,null,null,null,null,null,null,null,null,null,null,null,{"$f":"-(G38)-1.5","v":-1.5},-0.66666666666666663]
[null,null,null,null,null,null,null,null,null,null,null,null,{"$f":"-(G38)-1","v":-1},-1]
[null,null,null,null,null,null,null,null,null,null,null,null,{"$f":"-(G38)-0.5","v":-0.5},-2]
[null,null,null,null,null,null,null,null,null,null,null,null,{"$f":"-(G38)-0.2","v":-0.2},-5]
[null,null,null,null,null,null,null,null,null,null,null,null,{"$f":"-(G38)","v":0}]
[null,null,null,null,null,null,null,null,null,null,null,null,{"$f":"-(G38)+0.2","v":0.2},null,{"$f":"1/(M49+$G$38)","v":5}]
[null,null,null,null,null,null,null,null,null,null,null,null,{"$f":"-(G38)+0.5","v":0.5},null,{"$f":"1/(M50+$G$38)","v":2}]
[null,null,null,null,null,null,null,null,null,null,null,null,{"$f":"-(G38)+1","v":1},null,1]
[null,null,null,null,null,null,null,null,null,null,null,null,{"$f":"-(G38)+1.5","v":1.5},null,0.66666666666666663]
[null,null,null,null,null,null,null,null,null,null,null,null,{"$f":"-(G38)+2","v":2},null,0.5]
[null,null,null,null,null,null,null,null,null,null,null,null,{"$f":"-(G38)+2.5","v":2.5},null,0.4]
[null,null,null,null,null,null,null,null,null,null,null,null,{"$f":"-(G38)+3","v":3},null,0.33333333333333331]
[null,null,null,null,null,null,null,null,null,null,null,null,{"$f":"-(G38)+3.5","v":3.5},null,0.2857142857142857]
[null,null,null,null,null,null,null,null,null,null,null,null,{"$f":"-(G38)+4","v":4},null,0.25]
[]
[]
[]
[]
[]
[]
[]
[]
[]
[]
[]
[]
[]
["Funkce:",null,null,null,null,"Zadání konstanty:",null,null,null,"Hodnoty v tabulce:"]
["y = 1/(x + b)",null,null,null,null,"b=",{"$f":"I72-3","v":0},null,3,null,null,null,"x","y","y"]
[null,null,null,null,null,null,null,null,null,null,null,null,{"$f":"-(G72)-4","v":-4},{"$f":"1/(M73+$G$72)+$G$74","v":-0.25}]
[null,null,null,null,null,"a=",{"$f":"I74-3","v":0},null,3,null,null,null,{"$f":"-(G72)-3.5","v":-3.5},{"$f":"1/(M74+$G$72)+$G$74","v":-0.2857142857142857}]
[null,null,null,null,null,null,null,null,null,null,null,null,{"$f":"-(G72)-3","v":-3},{"$f":"1/(M75+$G$72)+$G$74","v":-0.33333333333333331}]
[null,null,null,null,null,null,null,null,null,null,null,null,{"$f":"-(G72)-2.5","v":-2.5},{"$f":"1/(M76+$G$72)+$G$74","v":-0.4}]
[null,null,null,null,null,null,null,null,null,null,null,null,{"$f":"-(G72)-2","v":-2},{"$f":"1/(M77+$G$72)+$G$74","v":-0.5}]
["Graf funkce:",null,"y=","1/(x",{"$f":"IF(G72<0, \"-\", \"+\")","v":"+"},{"$f":"ABS(G72)&\")\"","v":"0)"},{"$f":"IF(G74<0, \"-\", \"+\")","v":"+"},{"$f":"G74","v":0},null,null,null,null,{"$f":"-(G72)-1.5","v":-1.5},{"$f":"1/(M78+$G$72)+$G$74","v":-0.66666666666666663}]
[null,null,null,null,null,null,null,null,null,null,null,null,{"$f":"-(G72)-1","v":-1},{"$f":"1/(M79+$G$72)+$G$74","v":-1}]
[null,null,null,null,null,null,null,null,null,null,null,null,{"$f":"-(G72)-0.5","v":-0.5},{"$f":"1/(M80+$G$72)+$G$74","v":-2}]
[null,null,null,null,null,null,null,null,null,null,null,null,{"$f":"-(G72)-0.2","v":-0.2},{"$f":"1/(M81+$G$72)+$G$74","v":-5}]
[null,null,null,null,null,null,null,null,null,null,null,null,{"$f":"-(G72)","v":0}]
[null,null,null,null,null,null,null,null,null,null,null,null,{"$f":"-(G72)+0.2","v":0.2},null,{"$f":"1/(M83+$G$72)+$G$74","v":5}]
[null,null,null,null,null,null,null,null,null,null,null,null,{"$f":"-(G72)+0.5","v":0.5},null,{"$f":"1/(M84+$G$72)+$G$74","v":2}]
[null,null,null,null,null,null,null,null,null,null,null,null,{"$f":"-(G72)+1","v":1},null,{"$f":"1/(M85+$G$72)+$G$74","v":1}]
[null,null,null,null,null,null,null,null,null,null,null,null,{"$f":"-(G72)+1.5","v":1.5},null,{"$f":"1/(M86+$G$72)+$G$74","v":0.66666666666666663}]
[null,null,null,null,null,null,null,null,null,null,null,null,{"$f":"-(G72)+2","v":2},null,{"$f":"1/(M87+$G$72)+$G$74","v":0.5}]
[null,null,null,null,null,null,null,null,null,null,null,null,{"$f":"-(G72)+2.5","v":2.5},null,{"$f":"1/(M88+$G$72)+$G$74","v":0.4}]
[null,null,null,null,null,null,null,null,null,null,null,null,{"$f":"-(G72)+3","v":3},null,{"$f":"1/(M89+$G$72)+$G$74","v":0.33333333333333331}]
[null,null,null,null,null,null,null,null,null,null,null,null,{"$f":"-(G72)+3.5","v":3.5},null,{"$f":"1/(M90+$G$72)+$G$74","v":0.2857142857142857}]
[null,null,null,null,null,null,null,null,null,null,null,null,{"$f":"-(G72)+4","v":4},null,{"$f":"1/(M91+$G$72)+$G$74","v":0.25}]